fUSD/lending_fUSD_20251102
["ID","MTS","AMOUNT","RATE_DAILY","PERIOD"]
[392852212,1762060243640,-403.875,0.00014771,2]
[392852214,1762060243649,-1425.0,0.00014771,2]
[392852216,1762060243659,-150.0,0.00014772,2]
[392852218,1762060243668,-150.0,0.0001478,2]
[392852221,1762060243678,-150.0,0.00014786,2]
[392852223,1762060243687,-2625.04877102,0.00014789,2]
[392852225,1762060243696,-166.23171828,0.00014789,2]
[392852227,1762060243706,-500.0,0.00014789,2]
[392852229,1762060243715,-500.0,0.00014789,2]
[392852231,1762060243725,-500.0,0.00014789,2]
[392852232,1762060243734,-536.55386986,0.00014799,2]
[392852235,1762060243743,-323.19,0.000148,2]
[392852237,1762060243752,-312.17,0.000148,2]
[392852239,1762060243763,-1425.0,0.00014801,2]
[392852241,1762060243772,-1425.0,0.00014804,2]
[392852243,1762060243782,-293.56118581,0.00014805,2]
[392852245,1762060243794,-211.1500372,0.00014806,2]
[392852246,1762060243803,-319.01372766,0.00014815,2]
[392852248,1762060243813,-2625.04877102,0.00014826,2]
[392852250,1762060243822,-235.0,0.0001483,2]
[392852252,1762060243831,-150.0,0.00014831,2]
[392852254,1762060243840,-609.0,0.00014839,2]
[392852256,1762060243850,-150.0,0.0001485,2]
[392852258,1762060243860,-293.56118581,0.00014852,2]
[392852261,1762060243869,-150.0,0.00014861,2]
[392852262,1762060243879,-2625.04877102,0.00014863,2]
[392852265,1762060243888,-235.0,0.00014867,2]
[392852266,1762060243898,-580.85,0.00014875,2]
[392852268,1762060243908,-150.0,0.00014879,2]
[392852269,1762060243917,-150.0,0.00014883,2]
[392852270,1762060243926,-150.0,0.00014886,2]
[392852271,1762060243935,-325.47763889,0.00014896,2]
[392852272,1762060243944,-9758.76458052,0.000149,2]
[392852273,1762060243953,-199.35284124,0.000149,2]
[392852274,1762060243963,-2625.04877102,0.000149,2]
[392852275,1762060243972,-166.23171828,0.000149,2]
[392852276,1762060243981,-293.56118581,0.000149,2]
[392852277,1762060243991,-224.88177046,0.000149,2]
[392852278,1762060244000,-200.0,0.00014914,2]
[392852279,1762060244009,-200.0,0.00014914,2]
[392852280,1762060244019,-1425.0,0.00014928,2]
[392852281,1762060244028,-150.0,0.00014935,2]
[392852282,1762060244038,-850.63568263,0.00014937,2]
[392852283,1762060244046,-151.0,0.00014941,2]
[392852284,1762060244055,-151.0,0.00014941,2]
[392852285,1762060244064,-151.0,0.00014942,2]
[392852286,1762060244074,-151.0,0.00014942,2]
[392852287,1762060244083,-581.0,0.00014959,2]
[392852288,1762060244092,-573.0,0.00014965,2]
[392852289,1762060244102,-1595.0,0.00014965,2]
[392852290,1762060244112,-1314.0,0.00014965,2]
[392852291,1762060244121,-1272.0,0.00014965,2]
[392852292,1762060244130,-819.0,0.00014965,2]
[392852293,1762060244139,-559.0,0.00014965,2]
[392852294,1762060244148,-2140.0,0.00014965,2]
[392852295,1762060244157,-905.0,0.00014965,2]
[392852296,1762060244166,-477.45087779,0.00014971,2]
[392852297,1762060244175,-500.0,0.00014973,2]
[392852298,1762060244184,-500.0,0.00014973,2]
[392852299,1762060244194,-500.25483322,0.00014973,2]
[392852300,1762060244202,-500.0,0.00014973,2]
[392852301,1762060244211,-500.0,0.00014973,2]
[392852302,1762060244220,-500.0,0.00014973,2]
[392852303,1762060244429,-500.0,0.00014973,2]
[392852304,1762060244438,-500.0,0.00014973,2]
[392852305,1762060244447,-500.0,0.00014973,2]
[392852306,1762060244456,-330.68125412,0.00014973,2]
[392852307,1762060244468,-500.0,0.00014973,2]
[392852308,1762060244479,-500.16327943,0.00014973,2]
[392852309,1762060244489,-500.0,0.00014973,2]
[392852310,1762060244499,-171.29104534,0.00014973,2]
[392852311,1762060244508,-500.0,0.00014973,2]
[392852312,1762060244517,-502.89969245,0.00014973,2]
[392852313,1762060244526,-560.73567698,0.00014973,2]
[392852314,1762060244536,-500.0,0.00014973,2]
[392852315,1762060244545,-500.0,0.00014973,2]
[392852316,1762060244556,-502.1435318,0.00014973,2]
[392852317,1762060244565,-501.55652216,0.00014973,2]
[392852318,1762060244575,-500.0,0.00014973,2]
[392852319,1762060244585,-500.0,0.00014973,2]
[392852320,1762060244595,-500.0,0.00014973,2]
[392852321,1762060244604,-500.0,0.00014973,2]
[392852322,1762060244613,-500.0,0.00014973,2]
[392852323,1762060244623,-500.0,0.00014973,2]
[392852324,1762060244633,-500.0,0.00014973,2]
[392852325,1762060244643,-500.0,0.00014973,2]
[392852326,1762060244652,-503.12723519,0.00014973,2]
[392852327,1762060244663,-500.0,0.00014973,2]
[392852328,1762060244675,-500.0,0.00014973,2]
[392852329,1762060244685,-500.0,0.00014973,2]
[392852330,1762060244695,-500.0,0.00014973,2]
[392852331,1762060244704,-500.0,0.00014973,2]
[392852332,1762060244713,-509.79482902,0.00014973,2]
[392852333,1762060244723,-500.0,0.00014973,2]
[392852334,1762060244732,-500.0,0.00014973,2]
[392852335,1762060244741,-1000.0,0.0001498,2]
[392852336,1762060244750,-1425.0,0.00014983,2]
[392852337,1762060244759,-150.0,0.00014986,2]
[392852338,1762060244768,-150.0,0.00014986,2]
[392852339,1762060244777,-299.60932939,0.00014986,2]
[392852340,1762060244786,-150.00000001,0.00014986,2]
[392852341,1762060244796,-150.0,0.00014986,2]
[392852342,1762060244805,-150.0,0.00014986,2]
[392852343,1762060244814,-150.0,0.00014986,2]
[392852344,1762060244823,-150.0,0.00014986,2]
[392852345,1762060244832,-150.0,0.00014986,2]
[392852346,1762060244841,-150.0,0.00014986,2]
[392852347,1762060244850,-150.0,0.00014986,2]
[392852348,1762060244860,-1239.0,0.00014997,2]
[392852349,1762060244869,-1239.0,0.00014997,2]
[392852350,1762060244878,-1239.0,0.00014997,2]
[392852351,1762060244887,-1239.0,0.00014997,2]
[392852352,1762060244896,-1239.0,0.00014997,2]
[392852353,1762060244905,-1239.0,0.00014997,2]
[392852354,1762060244916,-1239.0,0.00014997,2]
[392852355,1762060244925,-1239.0,0.00014997,2]
[392852356,1762060244934,-1239.0,0.00014998,2]
[392852357,1762060244943,-1239.0,0.00014998,2]
[392852358,1762060244952,-1239.0,0.00014998,2]
[392852359,1762060244961,-1239.0,0.00014998,2]
[392852360,1762060244970,-1239.0,0.00014998,2]
[392852361,1762060244979,-1239.0,0.00014998,2]
[392852362,1762060244989,-1239.0,0.00014998,2]
[392852363,1762060244998,-1239.0,0.00014998,2]
[392852364,1762060245007,-1239.0,0.00014998,2]
[392852365,1762060245017,-1239.0,0.00014998,2]
[392852366,1762060245026,-1239.0,0.00014998,2]
[392852367,1762060245035,-1239.0,0.00014998,2]
[392852368,1762060245044,-1239.0,0.00014998,2]
[392852369,1762060245052,-1239.0,0.00014998,2]
[392852370,1762060245061,-1239.0,0.00014998,2]
[392852371,1762060245071,-1239.0,0.00014998,2]
[392852372,1762060245080,-1239.0,0.00014998,2]
[392852373,1762060245089,-1239.0,0.00014998,2]
[392852374,1762060245099,-1239.0,0.00014998,2]
[392852375,1762060245108,-1136.93,0.00014998,2]
[392852376,1762060245117,-150.0,0.00014999,2]
[392852377,1762060245127,-1026.682,0.00014999,2]
[392852378,1762060245136,-150.84205474,0.00014999,2]
[392852379,1762060245145,-151.90944434,0.00014999,2]
[392852380,1762060245154,-152.07242879,0.00014999,2]
[392852381,1762060245163,-152.81928933,0.00014999,2]
[392852382,1762060245172,-150.85652783,0.00014999,2]
[392852383,1762060245181,-154.02119506,0.00014999,2]
[392852384,1762060245190,-252.03246734,0.00014999,2]
[392852385,1762060245199,-150.0,0.00014999,2]
[392852386,1762060245208,-151.35528404,0.00014999,2]
[392852387,1762060245216,-153.53481035,0.00014999,2]
[392852388,1762060245225,-152.13635504,0.00014999,2]
[392852389,1762060245234,-500.0,0.00014999,2]
[392852390,1762060245243,-550.67283435,0.00014999,2]
[392852391,1762060245252,-1001.1571,0.00014999,2]
[392852392,1762060245261,-150.0,0.00014999,2]
[392852393,1762060245271,-500.0,0.00014999,2]
[392852394,1762060245279,-150.0,0.00014999,2]
[392852395,1762060245288,-500.0,0.00014999,2]
[392852396,1762060245298,-150.0,0.00014999,2]
[392852397,1762060245307,-150.0,0.00014999,2]
[392852398,1762060245316,-254.25134906,0.00014999,2]
[392852399,1762060245325,-150.0,0.00014999,2]
[392852400,1762060245334,-500.0,0.00014999,2]
[392852401,1762060245343,-500.0,0.00014999,2]
[392852402,1762060245352,-150.0,0.00014999,2]
[392852403,1762060245361,-500.0,0.00014999,2]
[392852404,1762060245371,-150.0,0.00014999,2]
[392852405,1762060245379,-150.0,0.00014999,2]
[392852406,1762060245388,-577.0,0.00015,2]
[392852407,1762060245398,-857775.35711143,0.00015,2]
[392852408,1762060245407,-972662.52419857,0.00015,2]
[392852410,1762060246223,-1187.0,0.00014965,2]
[392852411,1762060246232,-273.70739778,0.00014973,2]
[392852412,1762060246242,-273.70739778,0.00014986,2]
[392852413,1762060246252,-273.70739778,0.00014998,2]
[392852414,1762060246261,-273.70739778,0.00014998,2]
[392852415,1762060246271,-151.0,0.00014998,2]
[392852416,1762060246280,-11908.07040888,0.00015,2]
[392852417,1762060246311,-391.228,0.00015,2]
[392852422,1762060272688,494.30843887,0.00014665,2]
[392852423,1762060278334,1108.45346766,0.00014566,2]
[392852424,1762060278363,10000.01,0.00014566,2]
[392852425,1762060278391,10000.01,0.00014566,2]
[392852426,1762060278418,10000.01,0.00014566,2]
[392852427,1762060278445,10000.01,0.00014566,2]
[392852428,1762060278474,10000.01,0.00014566,2]
[392852429,1762060278500,10000.01,0.00014566,2]
[392852430,1762060278528,10000.01,0.00014566,2]
[392852431,1762060278554,10000.01,0.00014566,2]
[392852432,1762060278580,8370.96483234,0.00014566,2]
[392852433,1762060281792,500.0,0.00014,2]
[392852434,1762060282605,192.55,0.00014,2]
[392852435,1762060295394,936.49516766,0.00014566,2]
[392852436,1762060295422,63.50483234,0.00014566,2]
[392852437,1762060313609,848.9391,0.00014566,2]
[392852440,1762060394130,500.0,0.00013356,2]
[392852453,1762060478065,208.7653768,0.00013699,2]
[392852454,1762060495511,515.15875602,0.0001399,2]
[392852455,1762060498088,8776.08586718,0.00014,2]
[392852456,1762060498115,10000.01,0.00014,2]
[392852457,1762060498144,10000.01,0.00014,2]
[392852458,1762060498175,10000.01,0.00014,2]
[392852459,1762060498203,10000.01,0.00014,2]
[392852460,1762060498232,10000.01,0.00014,2]
[392852461,1762060498263,10000.01,0.00014,2]
[392852462,1762060498292,10000.01,0.00014,2]
[392852463,1762060498320,10000.01,0.00014,2]
[392852464,1762060498347,10000.01,0.00014,2]
[392852467,1762060500506,-305.34091504,0.00014,2]
[392852473,1762060502469,-300.0,0.00013999,2]
[392852474,1762060502490,-5.726844,0.00014,2]
[392852475,1762060504696,-500.0,0.0001399,2]
[392852484,1762060509500,-615.24467144,0.00014,2]
[392852485,1762060509582,-10000.01,0.00014,2]
[392852486,1762060509730,-10000.01,0.00014,2]
[392852488,1762060509850,-10000.01,0.00014,2]
[392852491,1762060510147,-10000.01,0.00014,2]
[392852492,1762060510264,-10000.01,0.00014,2]
[392852493,1762060510400,-10000.01,0.00014,2]
[392852495,1762060510514,-10000.01,0.00014,2]
[392852497,1762060510683,-10000.01,0.00014,2]
[392852498,1762060510797,-10000.01,0.00014,2]
[392852499,1762060510899,207.28,0.00015,120]
[392852500,1762060510935,-10000.01,0.00014,2]
[392852501,1762060511068,-10000.01,0.00014,2]
[392852503,1762060511227,-10000.01,0.00014,2]
[392852504,1762060511507,-500.0,0.0001399,2]
[392852505,1762060511566,-9000.01,0.00014,2]
[392852506,1762060520259,-10000.01,0.00014,2]
[392852507,1762060520383,-10000.01,0.00014,2]
[392852508,1762060520501,-10000.01,0.00014,2]
[392852509,1762060520654,-10000.01,0.00014,2]
[392852510,1762060520846,-10000.01,0.00014,2]
[392852511,1762060520982,-1092.99170234,0.00014,2]
[392852512,1762060521721,1092.0,0.00013849,2]
[392852513,1762060526424,1092.0,0.00013849,2]
[392852514,1762060529393,1375.177049,0.00014097,2]
[392852515,1762060579595,500.0,0.00013356,2]
[392852517,1762060616339,392.26,0.00013954,2]
[392852518,1762060623412,500.0,0.00013356,2]
[392852520,1762060676704,400.0,0.00014,2]
[392852521,1762060684426,3008.35191277,0.0001388,2]
[392852522,1762060697950,500.0,0.00014,2]
[392852523,1762060728331,382.42524,0.000135,2]
[392852526,1762060800106,200.0,0.00013832,2]
[392852528,1762060880297,-2500.0,0.0001421,2]
[392852529,1762060895669,-1200.0,0.0001425,2]
[392852530,1762060911355,-1200.0,0.00014251,2]
[392852531,1762060911384,-300.0,0.00014251,2]
[392852532,1762060911414,-300.0,0.00014251,2]
[392852533,1762060912310,5512.29,0.00013853,2]
[392852535,1762060924953,151.0,0.00014168,2]
[392852536,1762060925534,151.0,0.00014168,2]
[392852537,1762060926148,151.0,0.00014168,2]
[392852538,1762060926205,322.6107,0.00014168,2]
[392852539,1762060926762,112.1093,0.00014168,2]
[392852540,1762060926792,38.8907,0.00014168,2]
[392852541,1762060927397,151.0,0.00014168,2]
[392852542,1762060927843,8243.98355888,0.00014168,2]
[392852543,1762060928033,151.0,0.00014168,2]
[392852544,1762060928275,151.0,0.00014168,2]
[392852545,1762060928644,151.0,0.00014168,2]
[392852546,1762060928683,-4581.13831899,0.00014252,2]
[392852547,1762060928716,-300.0,0.00014252,2]
[392852548,1762060928875,-300.0,0.00014252,2]
[392852549,1762060928939,151.0,0.00014168,2]
[392852550,1762060928983,155.54137155,0.00014168,2]
[392852551,1762060929255,151.0,0.00014168,2]
[392852552,1762060929520,151.0,0.00014168,2]
[392852553,1762060929853,151.0,0.00014168,2]
[392852554,1762060930204,151.0,0.00014168,2]
[392852555,1762060930257,620.0,0.00014168,2]
[392852556,1762060930306,496.47127164,0.00014168,2]
[392852557,1762060930457,151.0,0.00014168,2]
[392852558,1762060930711,151.0,0.00014168,2]
[392852559,1762060931075,151.0,0.00014168,2]
[392852560,1762060931369,151.0,0.00014168,2]
[392852561,1762060931719,151.0,0.00014168,2]
[392852562,1762060931887,200.0,0.00014168,2]
[392852563,1762060931971,292.37488359,0.00014168,2]
[392852564,1762060932334,151.0,0.00014168,2]
[392852565,1762060932631,239.84119403,0.00014168,2]
[392852566,1762060932960,151.0,0.00014168,2]
[392852567,1762060933655,151.0,0.00014168,2]
[392852568,1762060933717,151.0,0.00014168,2]
[392852569,1762060934346,151.0,0.00014168,2]
[392852570,1762060934395,211.86076522,0.00014168,2]
[392852571,1762060934448,500.0,0.00014168,2]
[392852572,1762060935051,500.0,0.00014168,2]
[392852573,1762060935432,151.0,0.00014168,2]
[392852574,1762060935657,500.0,0.00014168,2]
[392852575,1762060936067,151.0,0.00014168,2]
[392852576,1762060936111,500.0,0.00014168,2]
[392852577,1762060936207,200.0,0.00014168,2]
[392852578,1762060936323,500.0,0.00014168,2]
[392852579,1762060936680,151.0,0.00014168,2]
[392852580,1762060936819,500.0,0.00014168,2]
[392852581,1762060936900,500.0,0.00014168,2]
[392852582,1762060937296,151.0,0.00014168,2]
[392852583,1762060937418,500.0,0.00014168,2]
[392852584,1762060937521,114.92051397,0.00014168,2]
[392852585,1762060937548,385.07948603,0.00014168,2]
[392852586,1762060937895,151.0,0.00014168,2]
[392852587,1762060937971,250.0,0.00014168,2]
[392852588,1762060938041,500.0,0.00014168,2]
[392852589,1762060938183,500.0,0.00014168,2]
[392852590,1762060938493,151.0,0.00014168,2]
[392852591,1762060938596,250.0,0.00014168,2]
[392852592,1762060938681,500.0,0.00014168,2]
[392852593,1762060938820,500.0,0.00014168,2]
[392852594,1762060939188,151.0,0.00014168,2]
[392852595,1762060939295,250.0,0.00014168,2]
[392852596,1762060939337,500.0,0.00014168,2]
[392852597,1762060939474,500.0,0.00014168,2]
[392852598,1762060939827,151.0,0.00014168,2]
[392852599,1762060939939,500.0,0.00014168,2]
[392852600,1762060940079,500.0,0.00014168,2]
[392852601,1762060940292,250.0,0.00014168,2]
[392852602,1762060940447,151.0,0.00014168,2]
[392852603,1762060940567,500.0,0.00014168,2]
[392852604,1762060940910,500.0,0.00014168,2]
[392852605,1762060940956,250.0,0.00014168,2]
[392852606,1762060941184,151.0,0.00014168,2]
[392852607,1762060941225,500.0,0.00014168,2]
[392852608,1762060941371,500.0,0.00014168,2]
[392852609,1762060941410,250.0,0.00014168,2]
[392852610,1762060941814,500.0,0.00014168,2]
[392852611,1762060941905,151.0,0.00014168,2]
[392852612,1762060941982,500.0,0.00014168,2]
[392852613,1762060942033,57.93051397,0.00014168,2]
[392852614,1762060942057,192.06948603,0.00014168,2]
[392852615,1762060942445,586.31664217,0.00014168,2]
[392852616,1762060942552,151.0,0.00014168,2]
[392852617,1762060942621,500.0,0.00014168,2]
[392852618,1762060942657,309.00489128,0.00014168,2]
[392852619,1762060943213,151.0,0.00014168,2]
[392852620,1762060943260,546.81320183,0.00014168,2]
[392852621,1762060943816,151.0,0.00014168,2]
[392852622,1762060944416,151.0,0.00014168,2]
[392852623,1762060944858,178.26,0.0001108,2]
[392852624,1762060945042,151.0,0.00014168,2]
[392852625,1762060945649,151.0,0.00014168,2]
[392852626,1762060946299,151.0,0.00014168,2]
[392852627,1762060946473,151.0,0.00014168,2]
[392852628,1762060949698,500.0,0.00014168,2]
[392852629,1762060950522,500.0,0.00014168,2]
[392852630,1762060951021,500.0,0.00014168,2]
[392852631,1762060956794,200.0,0.00014168,2]
[392852632,1762060962916,321.5585805,0.00014168,2]
[392852633,1762061018663,150.0,0.00013848,2]
[392852636,1762061058706,1000.0,0.00013699,2]
[392852638,1762061099598,150.0,0.0001385,2]
[392852643,1762061206066,3462.03,0.00013838,2]
[392852644,1762061210555,250.75,0.00013837,2]
[392852645,1762061227664,494.0,0.00013984,2]
[392852646,1762061234481,-1462.36362385,0.0001433,2]
[392852647,1762061255799,1600.0,0.00013834,2]
[392852648,1762061264599,562.12,0.00013836,2]
[392852649,1762061274265,500.0,0.00013356,2]
[392852651,1762061284904,200.0,0.00013841,2]
[392852653,1762061311682,3515.76,6.918e-05,2]
[392852655,1762061312004,3515.76,7.282e-05,2]
[392852656,1762061312207,106.37,7.646e-05,2]
[392852657,1762061312235,3409.39,7.646e-05,2]
[392852658,1762061312298,3515.76,8.01e-05,2]
[392852659,1762061312525,3074.86,8.374e-05,2]
[392852660,1762061312551,440.9,8.374e-05,2]
[392852661,1762061312721,3515.76,8.738e-05,2]
[392852662,1762061312919,3515.76,9.103e-05,2]
[392852663,1762061313539,2527.59,9.467e-05,2]
[392852664,1762061313567,988.17,9.467e-05,2]
[392852665,1762061313646,3515.76,9.831e-05,2]
[392852666,1762061313717,3515.76,0.00010195,2]
[392852667,1762061313813,1980.32,0.00010559,2]
[392852668,1762061313841,1535.44,0.00010559,2]
[392852669,1762061313943,3515.76,0.00010923,2]
[392852670,1762061314282,3515.76,0.00011287,2]
[392852671,1762061314475,1433.05,0.00011651,2]
[392852672,1762061314504,2082.71,0.00011651,2]
[392852673,1762061314684,3515.76,0.00012015,2]
[392852674,1762061314896,3515.76,0.00012379,2]
[392852675,1762061315090,885.78,0.00012744,2]
[392852676,1762061315118,2629.98,0.00012744,2]
[392852677,1762061315287,3515.76,0.00013108,2]
[392852678,1762061315494,3515.76,0.00013472,2]
[392852679,1762061315697,338.51,0.00013836,2]
[392852680,1762061315726,3177.25,0.00013836,2]
[392852682,1762061355145,6822.76,0.0001383,2]
[392852683,1762061355169,6719.15,0.0001383,2]
[392852684,1762061355670,3280.86,0.0001383,2]
[392852685,1762061355695,1766.96,0.0001383,2]
[392852731,1762061436595,7496.81,0.00013828,2]
[392852734,1762061438008,-494.0,0.00014346,2]
[392852735,1762061438018,-195.0,0.0001437,2]
[392852736,1762061438027,-1146.0868174,0.0001437,2]
[392852737,1762061438038,-825.07238328,0.0001437,2]
[392852738,1762061438048,-369.0,0.00014394,2]
[392852739,1762061438057,-1092.0,0.00014475,2]
[392852740,1762061438067,-494.0,0.0001452,2]
[392852741,1762061438076,-485.0,0.0001461,2]
[392852742,1762061438086,-221.66766337,0.00014628,2]
[392852743,1762061438095,-1200.0,0.00014671,2]
[392852744,1762061438105,-300.0,0.0001469,2]
[392852745,1762061438115,-300.0,0.0001469,2]
[392852746,1762061438125,-491.59971886,0.00014691,2]
[392852747,1762061438135,-496.47127164,0.00014691,2]
[392852748,1762061438145,-150.99,0.00014691,2]
[392852749,1762061438155,-3785.54,0.00014691,2]
[392852750,1762061438164,-999.99,0.00014691,2]
[392852751,1762061438174,-150.0,0.00014699,2]
[392852752,1762061438183,-176.74,0.000147,2]
[392852753,1762061438194,-548.74,0.000147,2]
[392852754,1762061438203,-337.69,0.000147,2]
[392852755,1762061438213,-415.29,0.000147,2]
[392852756,1762061438223,-697.96,0.000147,2]
[392852757,1762061438232,-150.0,0.000147,2]
[392852758,1762061438242,-1204.11,0.000147,2]
[392852759,1762061438251,-476.65,0.000147,2]
[392852760,1762061438262,-548.74,0.000147,2]
[392852761,1762061438271,-1671.81,0.000147,2]
[392852762,1762061438281,-207.86,0.000147,2]
[392852763,1762061438290,-62.48838602,0.000147,2]
[392852764,1762061440160,-114.25161398,0.000147,2]
[392852765,1762061440192,-168.88,0.000147,2]
[392852766,1762061440225,-150.0,0.000147,2]
[392852767,1762061440257,-476.65,0.000147,2]
[392852768,1762061440289,-150.0,0.000147,2]
[392852769,1762061440320,-415.29,0.000147,2]
[392852770,1762061440351,-697.96,0.000147,2]
[392852771,1762061440382,-1204.11,0.000147,2]
[392852772,1762061440412,-150.0,0.000147,2]
[392852773,1762061440442,-168.88,0.000147,2]
[392852774,1762061440473,-546.85,0.000147,2]
[392852775,1762061440504,-353.48,0.000147,2]
[392852776,1762061440536,-150.0,0.000147,2]
[392852778,1762061441052,-697.96,0.000147,2]
[392852779,1762061441062,-839.39,0.000147,2]
[392852780,1762061441071,-151.16,0.000147,2]
[392852781,1762061441081,-1204.11,0.000147,2]
[392852782,1762061441090,-176.74,0.000147,2]
[392852783,1762061441099,-337.76,0.000147,2]
[392852784,1762061441109,-697.96,0.000147,2]
[392852785,1762061441118,-150.0,0.000147,2]
[392852786,1762061441127,-1030.49,0.000147,2]
[392852787,1762061441136,-828.61,0.000147,2]
[392852788,1762061441145,-548.74,0.000147,2]
[392852789,1762061441155,-150.0,0.000147,2]
[392852790,1762061441164,-1445.14,0.000147,2]
[392852791,1762061441173,-893.21759391,0.00014738,2]
[392852792,1762061441182,-1168.94260242,0.00014754,2]
[392852793,1762061441191,-2835.0,0.00014756,2]
[392852794,1762061441200,-323.1,0.00014767,2]
[392852795,1762061441210,-2278.887,0.00014767,2]
[392852796,1762061441219,-1589.2405,0.00014778,2]
[392852797,1762061441228,-1644.7576,0.00014778,2]
[392852798,1762061441238,-150.0,0.00014786,2]
[392852799,1762061441247,-454.07,0.000148,2]
[392852800,1762061441256,-257.54,0.000148,2]
[392852801,1762061441265,-548.74,0.000148,2]
[392852802,1762061441274,-176.86,0.000148,2]
[392852803,1762061441283,-697.96,0.000148,2]
[392852804,1762061441292,-415.29,0.000148,2]
[392852805,1762061441301,-150.0,0.000148,2]
[392852806,1762061441310,-176.74,0.000148,2]
[392852807,1762061441320,-1204.11,0.000148,2]
[392852808,1762061441329,-150.0,0.000148,2]
[392852809,1762061441339,-548.74,0.000148,2]
[392852810,1762061441348,-150.0,0.000148,2]
[392852811,1762061441357,-150.0,0.000148,2]
[392852812,1762061441366,-415.29,0.000148,2]
[392852813,1762061441375,-697.96,0.000148,2]
[392852814,1762061441386,-476.65,0.000148,2]
[392852815,1762061441395,-548.74,0.000148,2]
[392852816,1762061441404,-1204.11,0.000148,2]
[392852817,1762061441414,-176.74,0.000148,2]
[392852818,1762061441423,-150.0,0.000148,2]
[392852819,1762061441432,-415.29,0.000148,2]
[392852820,1762061441441,-697.96,0.000148,2]
[392852821,1762061441451,-150.0,0.000148,2]
[392852822,1762061441460,-176.74,0.000148,2]
[392852823,1762061441469,-548.74,0.000148,2]
[392852824,1762061441478,-1225.21,0.000148,2]
[392852825,1762061441487,-476.65,0.000148,2]
[392852826,1762061441496,-168.88,0.000148,2]
[392852827,1762061441505,-150.0,0.000148,2]
[392852828,1762061441515,-697.96,0.000148,2]
[392852829,1762061441523,-548.74,0.000148,2]
[392852830,1762061441533,-460.8,0.000148,2]
[392852831,1762061441542,-301.23,0.000148,2]
[392852832,1762061441551,-2419.76,0.000148,2]
[392852833,1762061441560,-150.79,0.000148,2]
[392852834,1762061441570,-150.0,0.000148,2]
[392852835,1762061441579,-168.88,0.000148,2]
[392852836,1762061441588,-150.0,0.000148,2]
[392852837,1762061441597,-476.65,0.000148,2]
[392852838,1762061441607,-1173.02,0.000148,2]
[392852839,1762061441616,-150.0,0.000148,2]
[392852840,1762061441625,-415.29,0.000148,2]
[392852841,1762061441635,-301.19,0.000148,2]
[392852842,1762061441645,-337.76,0.000148,2]
[392852843,1762061441654,-1097.14,0.000148,2]
[392852844,1762061441663,-415.29,0.000148,2]